bitfinex-derivatives/quotes_ETHF0:USTF0_20250426
["timestamp","ask_amount","ask_price","bid_price","bid_amount"]
[1745705297324,1.5786,1821.3,1821.2,9.61362]
[1745705298224,1.09765,1821.5,1821.3,1.09773]
[1745705298426,21.09747,1821.8,1821.4,3.2078]
[1745705298622,1.6817,1821.7,1821.3,7.43989]
[1745705298818,1.6817,1821.7,1821.6,4.30538]
[1745705299017,0.35758224,1821.9,1821.6,3.2078]
[1745705299218,6.62883,1822.4,1821.3,7.43989]
[1745705299219,5.912,1824.4,1821.8,3.77905499]
[1745705299424,3.2078,1823.0,1822.5,3.2078]
[1745705299631,3.2078,1822.8,1822.3,3.2078]
[1745705299824,1.09722,1822.2,1822.1,3.2078]
[1745705300124,1.0974,1821.9,1821.8,0.02]
[1745705300536,14.2174984,1821.9,1821.5,3.2078]
[1745705300832,1.0976,1821.6,1821.4,3.2078]
[1745705301032,1.09773,1821.4,1821.2,3.2078]
[1745705301327,1.6638,1821.3,1821.2,3.2078]
[1745705301828,1.6638,1821.3,1821.2,4.30562]
[1745705302328,1.6638,1821.3,1821.2,9.61362]
[1745705303021,0.8389,1821.5,1821.4,1.0977]
[1745705303224,1.6975,1821.7,1821.6,1.09758]
[1745705303520,4.092,1822.7,1822.2,1.09719]
[1745705303825,0.8097,1822.6,1822.4,3.2078]
[1745705304016,65.715,1823.0,1822.5,1.09704]
[1745705304220,0.8097,1823.1,1822.8,3.2078]
[1745705304432,0.97715643,1823.1,1823.0,4.30454]
[1745705304629,0.97715643,1823.1,1823.0,3.2078]
[1745705304825,0.97715643,1823.1,1823.0,4.30454]
[1745705305331,0.8349,1823.8,1823.6,1.09634]
[1745705305623,0.8349,1823.8,1823.5,3.2078]
[1745705305624,0.011,1823.7,1823.5,3.2078]
[1745705305821,0.011,1823.7,1823.6,1.09638]
[1745705306017,3.2078,1824.5,1823.6,4.298]
[1745705306223,3.2078,1824.7,1824.0,1.09613]
[1745705306417,3.2078,1824.2,1823.7,3.2078]
[1745705306628,1.09638,1823.6,1823.5,8.5158]
[1745705306923,1.09629,1823.8,1823.5,5.308]
[1745705307227,9.2174984,1824.1,1823.5,8.5158]
[1745705307431,1.6312,1824.4,1823.6,3.2078]
[1745705307728,3.2078,1824.7,1824.2,3.2078]
[1745705307933,1.09592,1824.4,1824.0,3.2078]
[1745705308224,1.7175,1824.3,1823.8,3.2078]
[1745705308419,2.81347,1824.3,1823.8,3.2078]
[1745705308620,10.9349984,1824.3,1823.9,1.09615]
[1745705308815,10.9349984,1824.3,1823.9,4.30396]
[1745705308816,12.0309584,1824.3,1823.9,4.30396]
[1745705309124,10.9349984,1824.3,1823.9,3.2078]
[1745705309327,1.7175,1824.3,1824.2,3.2078]
[1745705309522,1.7175,1824.3,1824.0,3.2078]
[1745705309523,10.9349984,1824.3,1824.0,3.2078]
[1745705310127,1.7175,1824.3,1824.2,4.30382]
[1745705311129,3.2078,1824.9,1824.2,4.30382]
[1745705311130,3.2078,1824.9,1824.2,8.5158]
[1745705311324,1.7227,1824.6,1824.2,8.5158]
[1745705311727,1.7227,1824.6,1824.5,1.09583]
[1745705312122,1.7227,1824.6,1824.5,5.308]
[1745705312319,1.7227,1824.6,1824.5,6.40383]
[1745705312522,1.7227,1824.6,1824.5,5.308]
[1745705312928,12.0359684,1824.6,1824.5,5.308]
[1745705313327,2.73975,1824.4,1823.7,3.2078]
[1745705313527,3.2078,1824.2,1823.7,4.30409]
[1745705313726,3.2078,1824.2,1823.7,3.2078]
[1745705314135,3.2078,1824.2,1824.1,1.09608]
[1745705314337,1.09571,1824.7,1824.3,1.09593]
[1745705314628,1.09582,1824.6,1824.2,2.79338]
[1745705314834,7.1055184,1824.6,1824.2,2.79338]
[1745705315028,6.0096984,1824.6,1824.2,1.6974]
[1745705315234,3.2078,1824.8,1824.6,1.09577]
[1745705315433,9.2174984,1824.8,1824.6,1.09577]
[1745705315634,3.2078,1824.8,1824.4,1.6974]
[1745705315827,3.2078,1824.8,1824.7,1.09571]
[1745705316027,3.2078,1824.8,1824.6,1.09574]
[1745705316233,10.3131484,1824.8,1824.7,5.308]
[1745705316432,9.2174984,1824.8,1824.7,5.308]
[1745705316734,19.6071484,1824.8,1824.7,5.308]
[1745705317434,12.1053484,1824.8,1824.7,5.308]
[1745705317636,15.3131484,1824.8,1824.7,5.308]
[1745705318027,2.73929,1824.7,1824.1,3.2078]
[1745705318229,1.09602,1824.2,1823.8,3.2078]
[1745705318434,1.7177,1824.1,1823.8,4.30403]
[1745705318625,1.7177,1824.1,1823.8,3.2078]
[1745705318828,1.09616,1824.0,1823.8,4.30405]
[1745705319137,1.7177,1823.9,1823.8,8.5158]
[1745705319335,1.7177,1823.9,1823.8,9.61206]
[1745705319633,0.8001,1824.2,1824.0,1.09609]
[1745705319837,0.8001,1824.2,1824.1,1.09608]
[1745705320337,0.8001,1824.2,1824.0,6.40411]
[1745705320539,1.89612,1824.2,1824.0,5.308]
[1745705320739,0.8001,1824.2,1824.0,6.40412]
[1745705320930,1.6414,1824.1,1824.0,6.40412]
[1745705321238,2.73748,1824.1,1824.0,5.308]
[1745705321533,1.6414,1824.1,1824.0,5.308]
[1745705321834,2.73748,1824.1,1824.0,5.308]
[1745705322439,1.6414,1824.1,1824.0,6.40414]
[1745705322837,1.6414,1824.1,1824.0,5.308]
[1745705323435,2.4502,1824.1,1824.0,5.308]
[1745705324540,3.54628,1824.1,1824.0,5.308]
[1745705324837,1.1813488,1824.1,1824.0,5.308]
[1745705325631,0.0852688,1824.1,1824.0,5.308]
[1745705325839,0.0852688,1824.1,1824.0,6.40414]
[1745705326539,0.0852688,1824.1,1824.0,5.308]
[1745705326734,0.0852688,1824.1,1824.0,6.40414]
[1745705328135,1.7780688,1824.1,1824.0,6.40414]
[1745705329839,1.6928,1824.1,1824.0,6.40414]
[1745705330243,0.7956,1824.5,1824.4,1.0959]
[1745705330632,2.5194,1824.5,1824.4,1.0959]
[1745705330836,1.7238,1824.5,1824.4,1.0959]
[1745705331047,3.2078,1824.6,1824.5,1.09583]
[1745705331544,4.30361,1824.6,1824.4,6.40389]
[1745705331745,1.7238,1824.5,1824.4,6.40389]
[1745705333333,1.7238,1824.5,1824.4,5.308]
[1745705333539,1.7238,1824.5,1824.4,6.4039]
[1745705333947,2.81963,1824.5,1824.4,5.308]
[1745705334543,1.7238,1824.5,1824.4,6.4039]
[1745705335246,2.81963,1824.5,1824.4,5.308]
[1745705335452,1.7238,1824.5,1824.4,5.308]
[1745705335646,2.81963,1824.5,1824.4,5.308]
[1745705335839,1.7238,1824.5,1824.4,5.308]
[1745705336039,1.7238,1824.5,1824.4,6.4039]
[1745705336248,1.7238,1824.5,1824.4,5.308]
[1745705336446,2.81963,1824.5,1824.4,5.308]
[1745705336950,3.65263,1824.5,1824.4,5.308]
[1745705337147,3.65263,1824.5,1823.9,1.6048]
[1745705337148,7.5568,1824.5,1823.9,1.6048]
[1745705337345,1.09611,1824.1,1823.8,3.2078]
[1745705337648,2.71398,1824.0,1823.8,4.30402]
[1745705337841,2.71398,1824.0,1823.8,1.09622]
[1745705338035,2.71398,1824.0,1823.8,6.40422]
[1745705338240,1.6178,1824.0,1823.9,1.0962]
[1745705338844,1.6178,1824.0,1823.9,2.6969]
[1745705339044,1.09598,1824.3,1824.1,1.09606]
[1745705339837,3.2078,1824.4,1824.3,1.09596]
[1745705340043,7.5458,1824.6,1824.0,3.2078]
[1745705340342,1.09588,1824.5,1824.2,1.09598]
[1745705340650,1.09584,1824.5,1824.3,1.09592]
[1745705341146,1.09584,1824.5,1824.3,5.308]
[1745705341349,1.0959,1824.4,1824.3,5.308]
[1745705341550,8.64162,1824.6,1824.4,1.09587]
[1745705341943,4.30362,1824.6,1824.4,2.77217]
[1745705342148,1.09583,1824.5,1824.4,6.9843]
[1745705342348,2.76623,1824.5,1824.4,8.0802]
[1745705342547,7.76623,1824.5,1824.4,5.308]
[1745705343251,1.09602,1824.2,1824.1,1.09606]
[1745705343441,1.09596,1824.3,1824.1,1.09606]
[1745705343643,1.6704,1824.2,1824.1,1.09606]
[1745705344547,4.0004,1824.4,1824.1,1.6941]
[1745705344852,1.09596,1824.3,1824.1,2.79013]
[1745705345045,1.7111,1824.3,1824.2,2.79012]
[1745705345252,2.80706,1824.3,1824.2,1.6941]
[1745705345846,4.0004,1824.4,1824.0,5.308]
[1745705346045,0.7838,1824.3,1824.2,1.09602]
[1745705346255,3.59961,1824.4,1824.2,6.40397]
[1745705346449,2.5037,1824.4,1824.3,1.09596]
[1745705346650,2.5037,1824.4,1824.3,2.79006]
[1745705347057,3.5996,1824.4,1824.3,1.6941]
[1745705347253,7.5037,1824.4,1824.0,1.09611]
[1745705347555,2.5037,1824.4,1824.0,1.6941]
[1745705347853,1.09606,1824.2,1824.0,2.79021]
[1745705348049,1.6097,1824.1,1824.0,2.79021]
[1745705348252,1.6097,1824.1,1824.0,8.09821]
[1745705349258,1.09606,1824.2,1824.0,8.09821]
[1745705350558,1.096,1824.3,1824.0,7.0021]
[1745705350856,1.096,1824.3,1824.1,1.09606]
[1745705350857,1.09596,1824.3,1824.1,1.09606]
[1745705351258,1.09604,1824.2,1824.0,8.09821]
[1745705351956,1.09605,1824.2,1824.0,8.09821]
[1745705352155,1.096,1824.3,1824.1,1.09608]
[1745705352450,1.096,1824.3,1824.2,1.6372]
[1745705353158,2.6828,1824.3,1824.2,6.9452]
[1745705354758,2.6828,1824.3,1824.0,7.30936997]
[1745705354759,1.09608,1824.1,1824.0,7.30936997]
[1745705354963,4.30388,1824.1,1824.0,0.81832997]
[1745705355260,1.09614,1824.0,1823.9,9.80376469]
[1745705355555,13.04144,1824.0,1823.9,6.04719469]
[1745705355746,18.04144,1824.0,1823.9,6.04719469]
[1745705356154,18.04144,1824.0,1823.9,11.35519469]
[1745705357159,18.04144,1824.0,1823.9,10.18615469]
[1745705358355,18.04144,1824.0,1823.9,8.87609469]
[1745705358554,18.92197845,1824.0,1823.9,8.87609469]
[1745705359258,18.92197839,1824.0,1823.9,8.87609469]
[1745705359857,14.58397839,1824.0,1823.9,8.87609469]
[1745705360055,18.92297839,1824.0,1823.9,5.308]
[1745705360860,18.92297839,1824.0,1823.9,3.91589]
[1745705361161,1.09632,1823.7,1823.6,0.02482]
[1745705361353,4.30412,1823.7,1823.6,0.02482]
[1745705362260,10.11942,1823.7,1823.6,0.02482]
[1745705362660,1.09662,1823.2,1823.1,1.6454]
[1745705362858,4.339,1823.3,1822.9,3.2078]
[1745705363047,1.0967,1823.1,1822.9,5.96817]
[1745705363253,1.0967,1823.1,1822.9,11.27617]
[1745705363856,1.0967,1823.1,1822.9,8.06839]
[1745705364460,3.2078,1823.2,1822.9,6.9716]
[1745705364662,3.2078,1823.2,1823.1,1.09668]
[1745705365063,3.2078,1823.2,1823.0,1.09671]
[1745705365366,4.30444,1823.2,1823.1,1.6636]
[1745705365659,3.2078,1823.2,1823.1,1.6636]
[1745705365865,4.30442,1823.2,1823.1,1.6636]
[1745705366258,3.2078,1823.2,1823.1,2.76028]
[1745705366459,3.2078,1823.2,1823.1,1.6636]
[1745705366659,4.30442,1823.2,1823.1,1.6636]
[1745705367064,1.09662,1823.2,1823.1,1.6636]
[1745705368367,5.97882,1823.2,1823.1,1.6636]
[1745705368866,5.97882,1823.2,1823.0,5.308]
[1745705368867,1.09668,1823.1,1823.0,5.308]
[1745705369056,2.74158,1823.1,1823.0,5.308]
[1745705369257,4.32488,1823.1,1823.0,5.308]
[1745705370268,5.912,1823.2,1823.1,1.09668]
[1745705370462,7.00862,1823.2,1823.1,1.5641]
[1745705371967,12.88562,1823.2,1823.1,1.5641]
[1745705372167,1.09668,1823.1,1823.0,5.308]
[1745705372471,5.97448,1823.1,1823.0,5.308]
[1745705373668,7.4148,1823.1,1823.0,5.308]
[1745705373864,7.4148,1823.1,1823.0,6.1008]
[1745705374067,8.51148,1823.1,1823.0,6.1008]
[1745705375062,8.51148,1823.1,1823.0,7.7139]
[1745705375259,4.30448,1823.1,1823.0,7.7139]
[1745705375563,7.4148,1823.1,1823.0,8.81064]
[1745705375968,8.51148,1823.1,1823.0,8.81064]
[1745705376364,4.30448,1823.1,1823.0,8.81064]
[1745705376871,1.09668,1823.1,1823.0,8.81064]
[1745705377072,7.4148,1823.2,1823.0,8.81064]
[1745705377268,8.51142,1823.2,1823.1,1.6131]
[1745705377872,1.09668,1823.1,1823.0,5.308]
[1745705378073,2.69168,1823.1,1823.0,5.308]
[1745705378661,8.51144,1823.2,1823.0,5.308]
[1745705378870,8.51144,1823.2,1823.1,1.6674]
[1745705379884,4.30444,1823.2,1823.1,1.6674]
[1745705380086,8.51144,1823.2,1823.1,1.6674]
[1745705381973,10.23904,1823.2,1823.1,1.6674]
[1745705382986,1.09668,1823.1,1823.0,5.308]
[1745705383186,1.09674,1823.0,1822.9,1.7084]
[1745705384087,1.09674,1823.0,1822.9,7.0164]
[1745705385286,4.30454,1823.0,1822.9,5.308]
[1745705385587,5.08534,1823.0,1822.9,5.308]
[1745705386289,1.09686,1822.8,1822.7,1.6137]
[1745705386482,5.30486,1822.8,1822.7,1.6137]
[1745705386685,8.51266,1822.8,1822.7,1.6137]
[1745705387278,8.51266,1822.8,1822.7,6.9217]
[1745705387484,7.4158,1822.8,1822.7,8.01862]
[1745705389485,3.2078,1822.8,1822.7,8.01862]
[1745705390693,5.30475,1823.0,1822.9,1.0968]
[1745705390988,1.09668,1823.1,1822.9,1.0968]
[1745705391294,3.2078,1823.2,1823.1,1.09668]
[1745705391685,3.2078,1823.2,1823.1,2.70298]
[1745705394691,64.22024,1823.4,1823.2,1.09662]
[1745705394887,67.3317,1823.4,1823.2,2.66692]
[1745705395092,1.09656,1823.3,1823.2,1.5703]
[1745705395293,1.09656,1823.3,1823.2,5.308]
[1745705396493,6.98296,1823.3,1823.2,5.308]
[1745705397284,2.77496,1823.3,1823.2,5.308]
[1745705397493,6.98296,1823.3,1823.2,5.308]
[1745705398285,2.77496,1823.3,1823.2,5.308]
[1745705398487,1.09656,1823.3,1823.2,5.308]
[1745705398789,13.1868,1823.6,1823.2,5.308]
[1745705398993,1.91361,1823.4,1823.2,5.308]
[1745705399493,6.68231,1823.4,1823.2,5.308]
[1745705399693,1.09656,1823.3,1823.2,5.308]
[1745705399995,2.65746,1823.3,1823.2,5.308]
[1745705403998,11.03344,1823.4,1823.2,5.308]
[1745705404200,11.03344,1823.4,1823.2,6.1152]
[1745705404400,1.09656,1823.3,1823.2,6.1152]
[1745705405597,9.9369,1823.4,1823.2,6.1152]
[1745705405799,9.9369,1823.4,1823.2,7.8358]
[1745705406002,11.03344,1823.4,1823.3,1.7206]
[1745705406600,12.63554,1823.4,1823.3,1.7206]
[1745705407102,12.63554,1823.4,1823.3,7.0286]
[1745705407506,12.63554,1823.4,1823.3,5.308]
[1745705407803,6.72354,1823.4,1823.3,5.308]
[1745705409404,5.912,1823.5,1823.3,10.308]
[1745705409709,5.912,1823.5,1823.4,2.705]
[1745705410202,5.912,1823.5,1823.4,8.013]
[1745705412502,5.912,1823.5,1823.4,6.9165]
[1745705412704,5.912,1823.5,1823.4,8.013]
[1745705412907,7.00844,1823.5,1823.4,6.9165]
[1745705413207,9.38174,1823.5,1823.4,5.308]
[1745705413503,10.17784,1823.5,1823.4,5.308]
[1745705414105,15.17784,1823.5,1823.4,5.308]
[1745705414606,10.17784,1823.5,1823.4,4.01726]
[1745705414800,1.09674,1823.0,1822.9,0.7831]
[1745705414998,1.09692,1822.7,1822.6,14.53896602]
[1745705415305,1.09698,1822.6,1822.5,4.14736]
[1745705415504,8.57818,1822.6,1822.5,2.73325]
[1745705415706,13.66669298,1822.6,1822.5,1.12443]
[1745705416097,1.09716,1822.3,1822.2,14.53896602]
[1745705416303,8.37196,1822.3,1822.2,14.53896602]
[1745705417110,9.2879916,1822.3,1822.2,19.84696602]
[1745705417409,10.8571916,1822.3,1822.2,19.84696602]
[1745705418502,10.76866,1822.3,1822.2,19.84696602]
[1745705418708,15.8571926,1822.3,1822.2,16.76493602]
[1745705419009,15.8571926,1822.3,1822.2,3.88276]
[1745705419204,15.8571926,1822.3,1822.2,0.30018]
[1745705419509,2.7435,1821.9,1821.1,1.92176]
[1745705419701,2.7435,1821.9,1821.4,1.702]
[1745705419702,1.09767,1821.5,1821.4,1.702]
[1745705419906,1.09784,1821.2,1821.0,10.90740122]
[1745705420215,3.2078,1821.4,1821.1,1.702]
[1745705420406,3.2078,1821.4,1821.1,2.79986]
[1745705420608,4.068,1821.5,1821.2,0.8133]
[1745705420805,4.068,1821.5,1821.2,3.54348]
[1745705421004,8.37344,1821.5,1821.2,2.4457]
[1745705421204,8.37344,1821.5,1821.2,7.7537]
[1745705421412,7.2758,1821.5,1821.2,8.85152]
[1745705421910,7.2758,1821.5,1821.3,1.09771]
[1745705422111,7.2758,1821.5,1821.4,1.6324]
[1745705422610,8.37344,1821.5,1821.4,1.6324]
[1745705423201,8.37344,1821.5,1821.4,6.9404]
[1745705426213,8.37344,1821.5,1821.4,5.308]
[1745705427309,10.06844,1821.5,1821.4,5.308]
[1745705427511,16.06901552,1821.5,1821.4,5.308]
[1745705428613,21.06901552,1821.5,1821.4,5.308]
[1745705428810,16.06901552,1821.5,1821.4,5.308]
[1745705429010,21.06901612,1821.5,1821.4,3.87742]
[1745705429211,21.06901612,1821.5,1821.4,2.74213]
[1745705430004,15.98044,1821.5,1821.4,2.74213]
[1745705430210,21.06901307,1821.5,1821.4,1.60281]
[1745705431009,21.06901307,1821.5,1821.4,0.03734]
[1745705431214,21.06901307,1821.5,1821.4,1e-05]
[1745705431807,1.09794,1821.0,1820.9,1.6669]
[1745705432011,5.11294,1821.0,1820.9,1.6669]
[1745705432407,6.71504,1821.0,1820.9,1.6669]
[1745705433121,5.11294,1821.0,1820.9,6.9749]
[1745705434413,6.75374,1821.0,1820.9,6.9749]
[1745705435909,5.11294,1821.0,1820.9,6.9749]
[1745705436110,4.015,1821.0,1820.9,6.9749]
[1745705436307,5.11294,1821.0,1820.9,6.9749]
[1745705436510,4.015,1821.0,1820.9,6.9749]
[1745705436720,4.016,1821.0,1820.9,6.9749]
[1745705437616,4.0333,1821.1,1820.9,11.9749]
[1745705437824,0.0173,1821.1,1821.0,1.09794]
[1745705438118,0.0173,1821.1,1821.0,8.09004]
[1745705438317,0.0173,1821.1,1821.0,13.09004]
[1745705438522,7.2238,1821.4,1821.3,1.09776]
[1745705438723,7.2238,1821.4,1821.2,1.09778]
[1745705438920,7.2238,1821.4,1821.3,1.569]
[1745705439121,7.2238,1821.4,1821.3,2.66676]
[1745705439315,7.2238,1821.4,1821.3,1.569]
[1745705439513,8.3215,1821.4,1821.3,1.569]
[1745705440211,8.3215,1821.4,1821.3,6.877]
[1745705440922,7.2238,1821.4,1821.3,6.877]
[1745705441722,7.2238,1821.4,1821.3,7.656]
[1745705442117,8.3215,1821.4,1821.3,5.308]
[1745705442318,9.8974,1821.4,1821.3,5.308]
[1745705442920,14.8974,1821.4,1821.3,5.308]
[1745705443121,20.8094,1821.4,1821.3,5.308]
[1745705443916,15.8094,1821.4,1821.3,5.308]
[1745705446518,13.1358,1821.4,1821.3,5.308]
[1745705447018,13.1358,1821.4,1821.3,6.40576]
[1745705447727,3.2078,1821.4,1821.3,11.40576]
[1745705448422,4.016,1821.5,1821.4,1.0977]
[1745705448731,5.912,1821.8,1821.6,1.09756]
[1745705448922,5.11342,1821.9,1821.7,1.6824]
[1745705449525,4.016,1821.9,1821.7,1.6824]
[1745705449724,5.1134,1821.9,1821.7,1.6824]
[1745705450118,5.1134,1821.9,1821.7,6.9904]
[1745705450924,1.09746,1821.8,1821.7,6.9904]
[1745705451621,5.11344,1821.9,1821.7,6.9904]
[1745705452918,1.09746,1821.8,1821.7,6.9904]
[1745705453523,4.30526,1821.8,1821.7,6.9904]
[1745705455326,5.88746,1821.8,1821.7,6.9904]
[1745705459236,1.09764,1821.5,1821.4,0.8319]
[1745705459443,7.1278,1821.5,1821.0,0.8215]
[1745705459735,7.1278,1821.5,1821.1,0.8003]
[1745705459939,8.22547,1821.5,1821.2,2.681]
[1745705460132,8.22547,1821.5,1821.2,7.989]
[1745705461037,1.09771,1821.4,1821.2,6.8912]
[1745705461229,7.1278,1821.5,1821.2,6.8912]
[1745705461230,4.30556,1821.3,1821.2,6.8912]
[1745705461729,4.30556,1821.3,1821.2,5.308]
[1745705462128,5.94256,1821.3,1821.2,5.308]
[1745705462331,16.94314367,1821.3,1821.2,5.308]
[1745705462533,1.09794,1821.0,1820.9,1.5776]
[1745705462728,1.09794,1821.0,1820.7,1.6448]
[1745705462729,7.1278,1821.0,1820.7,1.6448]
[1745705463226,7.1278,1821.0,1820.9,5.308]
[1745705463936,7.1278,1821.0,1820.9,6.9483]
[1745705464340,8.22574,1821.0,1820.9,6.9483]
[1745705464931,8.22574,1821.0,1820.9,5.308]
[1745705465928,7.1278,1821.0,1820.9,5.308]
[1745705466634,8.22574,1821.0,1820.9,6.9496]
[1745705467735,7.1278,1821.0,1820.9,6.9496]
[1745705469140,7.1278,1821.0,1820.9,8.0476]
[1745705469942,7.1278,1821.0,1820.9,6.9496]
[1745705471139,8.22574,1821.0,1820.9,6.9496]
[1745705472537,7.1278,1821.0,1820.9,6.9496]
[1745705473337,7.1278,1821.0,1820.9,8.0476]
[1745705475349,3.92,1821.0,1820.9,8.0476]
[1745705475651,3.2078,1821.1,1821.0,1.09794]
[1745705475851,7.1278,1821.1,1821.0,2.82124]
[1745705476049,7.1278,1821.1,1821.0,8.12924]
[1745705476743,9.1198,1821.4,1821.0,12.0313]
[1745705476944,3.92,1821.3,1821.2,1.09777]
[1745705477150,3.92,1821.3,1821.2,8.12907]
[1745705477339,4.30553,1821.4,1821.3,1.09776]
[1745705477538,3.2078,1821.4,1821.3,2.82106]
[1745705477851,7.1278,1821.4,1821.3,2.82106]
[1745705478152,3.2078,1821.4,1821.3,13.12906]
[1745705478355,3.2078,1821.7,1821.6,1.09754]
[1745705478547,1.09749,1821.8,1821.6,1.09754]
[1745705478847,5.01749,1821.8,1821.7,1.6875]
[1745705479243,6.60859,1821.8,1821.7,1.6875]
[1745705479854,5.5111,1821.8,1821.7,1.6875]
[1745705480352,5.5111,1821.8,1821.7,6.9955]
[1745705480953,3.92,1821.8,1821.7,8.09302]
[1745705481547,3.92,1821.8,1821.7,6.9955]
[1745705482356,5.587,1821.8,1821.7,6.9955]
[1745705483151,5.587,1821.8,1821.7,8.09302]
[1745705483347,5.912,1822.1,1821.9,1.09739]
[1745705483554,3.92,1822.0,1821.9,1.09739]
[1745705484054,3.92,1822.0,1821.8,1.6093]
[1745705484055,3.92,1822.0,1821.8,2.70671]
[1745705484255,3.92,1822.0,1821.9,6.4054]
[1745705484460,3.92,1822.0,1821.9,8.0015]
[1745705484756,3.92,1822.0,1821.9,6.9041]
[1745705484959,3.92,1822.0,1821.9,8.0015]
[1745705485653,3.92,1822.0,1821.9,6.9041]
[1745705485855,5.6335,1822.0,1821.9,6.9041]
[1745705487561,6.73084,1822.0,1821.9,6.9041]
[1745705488559,6.73084,1822.0,1821.9,5.308]
[1745705492964,3.856,1822.0,1821.9,6.40535]
[1745705493155,3.2078,1822.1,1822.0,1.09734]
[1745705493355,7.0638,1822.1,1822.0,3.2821]
[1745705493649,8.16108,1822.1,1822.0,2.4721]
[1745705493856,1.09734,1822.0,1821.9,5.308]
[1745705494071,2.72054,1822.0,1821.9,5.308]
[1745705496358,1.09734,1822.0,1821.9,5.308]
[1745705496564,8.9875,1822.1,1821.9,6.9057]
[1745705496765,7.0638,1822.1,1822.0,1.6064]
[1745705497158,7.0638,1822.1,1822.0,6.9144]
[1745705499465,9.75268,1822.1,1822.0,6.9144]
[1745705500566,6.54488,1822.1,1822.0,6.9144]
[1745705501569,5.4476,1822.1,1822.0,6.9144]
[1745705501871,4.95328,1822.1,1822.0,6.9144]
[1745705505962,3.856,1822.1,1822.0,6.9144]
[1745705506369,4.95328,1822.1,1822.0,6.9144]
[1745705507169,3.856,1822.1,1822.0,8.01174]
[1745705507367,3.856,1822.1,1822.0,6.9144]
[1745705507565,3.856,1822.1,1822.0,8.01174]
[1745705507765,3.855,1822.4,1822.2,1.09722]
[1745705507965,3.855,1822.4,1822.3,2.4861]
[1745705508374,3.855,1822.4,1822.3,3.58326]
[1745705508671,3.855,1822.4,1822.3,2.4861]
[1745705509272,3.855,1822.4,1822.3,7.7941]
[1745705510475,4.9521,1822.4,1822.3,7.7941]
[1745705510870,3.855,1822.4,1822.3,8.89126]
[1745705511775,1.09696,1822.7,1822.4,1.0971]
[1745705511975,3.855,1822.6,1822.5,1.95324]
[1745705512177,3.855,1822.6,1822.5,6.1642]
[1745705512380,3.855,1822.6,1822.5,7.26124]
[1745705512571,3.2078,1822.8,1822.6,1.09695]
[1745705512770,1.09685,1822.9,1822.7,2.5649]
[1745705512970,1.0968,1822.9,1822.8,1.708]
[1745705514172,1.0968,1822.9,1822.8,5.308]
[1745705514572,3.4816,1822.9,1822.8,5.308]
[1745705516779,14.48210123,1822.9,1822.2,3.2078]
[1745705516984,1.09709,1822.5,1822.2,3.2078]
[1745705517282,5.5476,1822.4,1822.2,10.1603]
[1745705517480,5.5476,1822.4,1822.3,1.6445]
[1745705518083,5.5476,1822.4,1822.3,6.9525]
[1745705520584,6.6447,1822.4,1822.3,6.9525]
[1745705520778,6.6447,1822.4,1822.3,5.308]
[1745705520779,10.6556,1822.4,1822.3,5.308]
[1745705520984,10.74412215,1822.4,1822.3,5.308]
[1745705521579,10.74412357,1822.4,1822.3,5.308]
[1745705523189,10.74412335,1822.4,1822.3,5.308]
[1745705523576,7.4478,1822.4,1822.3,5.308]
[1745705523778,3.2078,1822.8,1822.3,8.5158]
[1745705523977,3.2078,1822.8,1822.4,3.2978]
[1745705524178,3.2078,1822.8,1822.5,2.79861]
[1745705524179,3.791,1822.7,1822.5,2.79861]
[1745705524377,3.791,1822.7,1822.6,1.7016]
[1745705525889,3.791,1822.7,1822.6,2.79858]
[1745705526587,3.64752763,1823.7,1822.6,6.7016]
[1745705526788,0.08845659,1823.6,1823.2,3.2078]
[1745705527093,6.58156,1823.7,1823.3,3.2932]
[1745705527290,1.09638,1823.6,1823.4,1.579]
[1745705527590,5.4852,1823.7,1823.4,1.579]
[1745705527779,1.09638,1823.6,1823.4,1.579]
[1745705527978,5.4852,1823.7,1823.4,1.579]
[1745705528189,1.0964,1823.6,1823.4,6.887]
[1745705528588,1.09644,1823.5,1823.4,6.887]
[1745705528989,1.09641,1823.6,1823.4,6.887]
[1745705529186,2.82081,1823.6,1823.4,6.887]
[1745705531888,1.7244,1823.6,1823.4,6.887]
[1745705534593,1.7244,1823.6,1823.4,7.98345]
[1745705535192,4.88633,1823.7,1823.4,7.98348]
[1745705535391,3.79,1823.7,1823.4,7.98345]
[1745705536092,3.79,1823.7,1823.5,1.09642]
[1745705536282,3.79,1823.7,1823.6,1.6072]
[1745705537488,4.88632,1823.7,1823.6,1.6072]
[1745705537691,3.79,1823.7,1823.6,1.6072]
[1745705538796,70.7008,1824.1,1823.6,1.6072]
[1745705539096,1.09622,1823.9,1823.7,1.6134]
[1745705539298,1.09626,1823.8,1823.7,0.8098]
[1745705539493,1.09632,1823.7,1823.6,1.6003]
[1745705539696,5.71622,1823.7,1823.6,1.6003]
[1745705539888,7.35192,1823.7,1823.6,1.6003]
[1745705540691,1.09638,1823.6,1823.5,5.308]
[1745705540891,2.73208,1823.6,1823.5,5.308]
[1745705541805,1.09638,1823.6,1823.5,5.308]
[1745705544506,2.70168,1823.6,1823.5,5.308]
[1745705545299,1.09656,1823.3,1823.2,1.6579]